bitfinex-derivatives/quotes_SOLF0:USTF0_20241127
["timestamp","ask_amount","ask_price","bid_price","bid_amount"]
[1732726371915,12.59977497,238.91,238.79,2.5]
[1732726372121,12.59977497,238.91,238.8,2.092]
[1732726372624,2.0915,238.86,238.79,2.0921]
[1732726372814,2.0915,238.86,238.78,1.3653]
[1732726372815,12.59977497,238.91,238.78,1.3653]
[1732726373016,12.59977497,238.91,238.77,10.09977497]
[1732726373214,16.64169511,238.84,238.76,2.5]
[1732726373415,16.64169511,238.83,238.76,2.5]
[1732726373623,16.63936147,238.82,238.76,2.5]
[1732726373815,9.13621174,238.81,238.76,2.5]
[1732726374016,10.09977497,238.88,238.76,2.5]
[1732726374223,16.63785767,238.84,238.76,2.5]
[1732726374422,16.63785767,238.83,238.79,2.0921]
[1732726374724,9.13412535,238.82,238.79,2.0921]
[1732726375023,2.0915,238.86,238.79,2.0921]
[1732726375320,16.63480784,238.84,238.79,2.0921]
[1732726375528,9.13244235,238.83,238.79,2.0921]
[1732726375720,9.13244235,238.82,238.77,10.09977497]
[1732726376026,12.59977497,238.91,238.8,2.0919]
[1732726376229,16.63069432,238.84,238.8,2.0919]
[1732726376421,9.13018615,238.83,238.8,2.0919]
[1732726376621,9.13018615,238.82,238.8,2.0919]
[1732726376824,12.59977497,238.91,238.8,2.0919]
[1732726377022,16.62903416,238.84,238.8,2.0919]
[1732726377219,2.0914,238.87,238.8,2.0919]
[1732726377220,9.12927389,238.83,238.8,2.0919]
[1732726377417,2.0914,238.87,238.8,2.0919]
[1732726377623,16.62290381,238.84,238.8,2.0919]
[1732726377923,9.12590926,238.83,238.8,2.0919]
[1732726378225,2.0914,238.87,238.8,2.0919]
[1732726378530,18.71394011,238.86,238.8,2.0919]
[1732726378822,9.12569754,238.85,238.8,2.0919]
[1732726379321,9.12569754,238.85,238.79,2.092]
[1732726379815,9.12569754,238.85,238.76,2.5]
[1732726380018,9.12569754,238.85,238.79,2.092]
[1732726380623,12.59977497,238.91,238.76,2.5]
[1732726380826,17.24073155,238.9,238.76,2.5]
[1732726381028,2.0915,238.86,238.76,2.5]
[1732726381422,2.0915,238.86,238.79,2.0921]
[1732726381820,2.0915,238.86,238.76,12.59977497]
[1732726382129,2.0915,238.86,238.79,2.0921]
[1732726382831,9.12591146,238.85,238.79,2.0921]
[1732726383030,2.0915,238.85,238.79,2.0921]
[1732726384230,12.59977497,238.91,238.76,10.09977497]
[1732726384427,17.23563616,238.9,238.8,2.0919]
[1732726384633,16.61104444,238.89,238.76,10.09977497]
[1732726384837,18.70234444,238.88,238.82,2.0917]
[1732726385130,11.39505497,238.94,238.79,10.09977497]
[1732726385328,17.23924109,238.93,238.79,10.09977497]
[1732726385532,7.49321863,238.92,238.82,10.09977497]
[1732726385731,16.61439343,238.92,238.82,10.09977497]
[1732726386027,9.1211748,238.92,238.82,10.09977497]
[1732726386229,9.1211748,238.91,238.82,10.09977497]
[1732726386425,2.0908,238.93,238.85,2.0915]
[1732726386626,9.11869294,238.92,238.82,10.09977497]
[1732726386830,9.11869294,238.91,238.82,10.09977497]
[1732726387029,2.091,238.91,238.81,2.5]
[1732726387231,16.60344314,238.9,238.81,2.5]
[1732726387431,7.48848353,238.89,238.81,2.5]
[1732726387626,7.48848353,238.88,238.83,2.0917]
[1732726387830,2.0909,238.92,238.81,2.5]
[1732726388126,16.60144092,238.91,238.81,2.5]
[1732726388326,16.60144092,238.9,238.86,2.0914]
[1732726388632,16.60144092,238.89,238.86,2.0914]
[1732726388828,16.60144092,238.88,238.86,2.0914]
[1732726389026,9.11408352,238.87,238.86,2.0914]
[1732726389335,2.0909,238.92,238.86,2.0914]
[1732726389535,16.59462635,238.91,238.86,2.0914]
[1732726389740,16.59462635,238.9,238.86,2.0914]
[1732726390041,16.59462635,238.89,238.77,10.09977497]
[1732726390237,16.59462635,238.88,238.8,10.09977497]
[1732726390433,9.11032425,238.87,238.86,2.0914]
[1732726390631,9.11032425,238.87,238.83,10.09977497]
[1732726390831,1.29528,238.94,238.83,10.09977497]
[1732726391039,16.58681924,238.93,238.83,10.09977497]
[1732726391241,2.091,238.91,238.83,10.09977497]
[1732726391440,16.58681924,238.9,238.83,10.09977497]
[1732726391734,16.58681924,238.89,238.83,10.09977497]
[1732726391935,16.58681924,238.88,238.83,10.09977497]
[1732726392132,1.29528,238.94,238.83,10.09977497]
[1732726392436,1.29528,238.94,238.86,10.09977497]
[1732726392437,16.58264898,238.93,238.86,10.09977497]
[1732726392637,16.58264898,238.92,238.86,10.09977497]
[1732726392843,9.10351018,238.91,238.86,10.09977497]
[1732726393139,9.10351018,238.9,238.86,10.09977497]
[1732726393334,1.29528,238.94,238.86,10.09977497]
[1732726393536,16.57347503,238.93,238.87,2.0914]
[1732726393846,3.38608,238.94,238.86,10.09977497]
[1732726393847,16.57347503,238.92,238.86,10.09977497]
[1732726394046,16.57347503,238.91,238.86,12.19117497]
[1732726394238,9.09869102,238.9,238.86,10.09977497]
[1732726394538,1.29528,238.94,238.86,10.09977497]
[1732726394539,9.09869102,238.89,238.86,10.09977497]
[1732726394742,2.0909,238.92,238.85,2.5]
[1732726394940,16.56801573,238.91,238.85,2.5]
[1732726395141,16.56801573,238.9,238.8,10.09977497]
[1732726395340,2.48,238.93,238.8,10.09977497]
[1732726395641,10.09977497,238.91,238.77,10.09977497]
[1732726395846,16.56304873,238.9,238.77,10.09977497]
[1732726396045,18.67485505,238.89,238.77,10.09977497]
[1732726396249,9.09304607,238.88,238.77,10.09977497]
[1732726396546,2.0916,238.85,238.78,2.0921]
[1732726396845,2.0916,238.85,238.77,10.09977497]
[1732726397945,2.0916,238.85,238.79,2.0921]
[1732726398343,1.3229,238.92,238.77,10.09977497]
[1732726398543,1.3229,238.92,238.74,2.48]
[1732726398544,2.0911,238.9,238.84,2.0916]
[1732726398847,0.6236315,238.89,238.84,2.0916]
[1732726399038,2.0911,238.9,238.84,2.0916]
[1732726399243,2.0909,238.92,238.86,2.0914]
[1732726399440,9.71592181,238.91,238.86,2.0914]
[1732726399744,1.29528,238.94,238.86,2.0914]
[1732726399745,1.29528,238.94,238.89,10.09977497]
[1732726400841,1.29528,238.94,238.93,2.0908]
[1732726401044,1.29528,238.94,238.89,10.09977497]
[1732726402045,1.29528,238.94,238.9,2.0911]
[1732726403249,1.29528,238.94,238.89,10.09977497]
[1732726404052,1.29528,238.94,238.91,2.091]
[1732726404346,1.29528,238.94,238.92,12.57977497]
[1732726404542,1.29528,238.94,238.93,2.0908]
[1732726405142,1.29528,238.94,238.92,12.57977497]
[1732726405345,1.29528,238.94,238.92,2.48]
[1732726405748,1.29528,238.94,238.89,10.09977497]
[1732726405946,1.29528,238.94,238.9,2.48]
[1732726407349,1.29528,238.94,238.9,4.5711]
[1732726407553,1.29528,238.94,238.9,2.48]
[1732726408759,1.29528,238.94,238.91,2.091]
[1732726409153,1.29528,238.94,238.93,2.0908]
[1732726410247,1.29528,238.94,238.9,4.571]
[1732726410554,1.29528,238.94,238.9,2.48]
[1732726410946,1.29528,238.94,238.9,2.0911]
[1732726411853,1.29528,238.94,238.89,12.57977497]
[1732726412150,9.11149731,238.93,238.89,12.57977497]
[1732726412349,1.29528,238.94,238.92,10.09977497]
[1732726414252,9.12420315,238.93,238.89,12.57977497]
[1732726414557,1.29528,238.94,238.89,12.57977497]
[1732726414752,16.61781948,238.93,238.89,12.57977497]
[1732726414952,1.29528,238.94,238.89,12.57977497]
[1732726414953,9.12327143,238.92,238.89,12.57977497]
[1732726415151,9.12327143,238.93,238.89,12.57977497]
[1732726415354,9.12327143,238.93,238.92,10.09977497]
[1732726415554,9.12511519,238.93,238.92,10.09977497]
[1732726416155,9.12511519,238.93,238.92,12.19067497]
[1732726416353,1.3081,239.03,238.92,10.09977497]
[1732726416552,16.62812837,239.02,238.92,10.09977497]
[1732726416748,16.62812837,239.01,238.92,10.09977497]
[1732726416959,2.0903,238.99,238.93,2.0908]
[1732726417149,16.62812837,238.98,238.93,2.0908]
[1732726417352,2.0903,238.99,238.93,2.0908]
[1732726417353,16.62812837,238.97,238.93,2.0908]
[1732726417553,16.62812837,238.96,238.93,2.0908]
[1732726417762,9.12872642,238.95,238.93,2.0908]
[1732726418060,9.12872642,238.94,238.93,2.0908]
[1732726418263,9.12872642,238.94,238.92,2.0909]
[1732726418450,2.0904,238.98,238.92,2.0909]
[1732726418754,1.3081,239.03,238.89,12.57977497]
[1732726418755,2.0906,238.96,238.9,2.0911]
[1732726418956,9.12697157,238.95,238.87,1.2889]
[1732726419260,16.62440465,238.94,238.86,12.57977497]
[1732726419553,10.09977497,238.99,238.86,12.57977497]
[1732726419554,9.12697157,238.93,238.86,12.57977497]
[1732726419759,2.0907,238.95,238.86,12.57977497]
[1732726419953,16.62585161,238.94,238.9,2.0911]
[1732726420159,1.3081,239.03,238.86,12.57977497]
[1732726420160,9.12743106,238.93,238.86,12.57977497]
[1732726420357,10.09977497,239.02,238.86,12.57977497]
[1732726420558,2.0903,238.99,238.89,10.09977497]
[1732726420757,16.62862712,238.98,238.89,10.09977497]
[1732726420958,16.62862712,238.97,238.89,10.09977497]
[1732726421255,16.62862712,238.96,238.92,2.0908]
[1732726421458,16.62862712,238.95,238.92,2.0908]
[1732726421754,9.12907744,238.94,238.92,2.0908]
[1732726421957,2.0903,238.99,238.92,2.0908]
[1732726422262,16.63118354,238.98,238.92,2.0908]
[1732726422458,16.63118354,238.97,238.92,2.0908]
[1732726422657,16.63118354,238.96,238.92,2.0908]
[1732726422963,16.63118354,238.95,238.92,2.0908]
[1732726423849,16.63118354,238.95,238.89,10.09977497]
[1732726424259,9.13035314,238.95,238.89,10.09977497]
[1732726424763,2.0903,238.99,238.89,10.09977497]
[1732726424961,2.0903,238.99,238.94,2.0907]
[1732726425258,2.0903,238.99,238.89,10.09977497]
[1732726425462,16.6283604,238.98,238.89,10.09977497]
[1732726425763,7.49955814,238.97,238.89,10.09977497]
[1732726425957,16.6283604,238.97,238.89,10.09977497]
[1732726426159,16.6283604,238.96,238.89,10.09977497]
[1732726426459,9.12880226,238.95,238.93,2.0908]
[1732726426659,9.12880226,238.94,238.93,2.0908]
[1732726426850,9.12880226,238.98,238.93,2.0908]
[1732726427055,16.62977231,238.97,238.93,2.0908]
[1732726427253,16.62977231,238.96,238.92,2.0909]
[1732726427456,16.62977231,238.95,238.92,2.0909]
[1732726427653,9.12880226,238.94,238.92,2.0909]
[1732726427856,2.0904,238.98,238.92,2.0909]
[1732726428052,16.62880044,238.97,238.92,2.0909]
[1732726428251,2.0904,238.98,238.92,2.0909]
[1732726428252,16.62880044,238.96,238.92,2.0909]
[1732726428463,16.62880044,238.95,238.92,2.0909]
[1732726428663,9.12913739,238.94,238.89,10.09977497]
[1732726428863,2.0904,238.98,238.89,10.09977497]
[1732726429063,16.63014685,238.97,238.89,10.09977497]
[1732726429259,16.63014685,238.96,238.92,2.0909]
[1732726429460,16.63014685,238.95,238.89,10.09977497]
[1732726429657,9.12978191,238.94,238.89,10.09977497]
[1732726429962,9.12978191,238.93,238.89,10.09977497]
[1732726430159,2.0903,238.99,238.92,2.0909]
[1732726430361,16.63530581,238.98,238.92,2.0909]
[1732726430564,16.63530581,238.97,238.89,10.09977497]
[1732726430764,16.63530581,238.96,238.89,10.09977497]
[1732726430960,16.63530581,238.95,238.89,10.09977497]
[1732726431163,16.63530581,238.94,238.89,10.09977497]
[1732726431357,9.13261589,238.93,238.89,10.09977497]
[1732726431664,11.43367497,239.04,238.89,10.09977497]
[1732726431865,2.0903,238.99,238.9,2.091]
[1732726432164,17.26699252,238.98,238.89,10.09977497]
[1732726432365,16.64353483,238.97,238.89,10.09977497]
[1732726432664,16.64353483,238.96,238.89,10.09977497]
[1732726432864,16.64353483,238.95,238.89,10.09977497]
[1732726433062,16.64353483,238.94,238.89,10.09977497]
[1732726433262,9.13713392,238.93,238.9,2.0911]
[1732726433459,9.13770617,238.92,238.9,2.0911]
[1732726433665,2.0906,238.96,238.9,2.0911]
[1732726433863,16.64517588,238.95,238.9,2.0911]
[1732726434065,16.64517588,238.94,238.9,2.0911]
[1732726434262,16.64517588,238.93,238.9,8.54650526]
[1732726434463,9.13803717,238.92,238.9,8.54650526]
[1732726434862,2.0906,238.96,238.9,8.54650526]
[1732726435061,16.64559528,238.95,238.9,8.54650526]
[1732726435260,2.091,238.92,238.77,2.0922]
[1732726435566,16.64639975,238.91,238.78,2.5285]
[1732726435765,16.64639975,238.9,238.84,6.45540526]
[1732726435961,18.73759975,238.89,238.84,8.54700526]
[1732726436165,9.13826388,238.88,238.84,8.54700526]
[1732726436368,6.45540526,238.93,238.84,8.54700526]
[1732726436663,2.0911,238.9,238.84,8.54700526]
[1732726436871,16.64602498,238.89,238.84,8.54700526]
[1732726437061,9.1385594,238.88,238.84,2.0916]
[1732726437268,6.45540526,238.91,238.84,2.0916]
[1732726437269,9.1385594,238.87,238.84,2.0916]
[1732726437472,9.1385594,238.87,238.79,2.48]
[1732726437473,6.45540526,238.89,238.81,8.54730526]
[1732726437770,16.65026836,238.88,238.81,8.54730526]
[1732726438069,16.65026836,238.87,238.82,2.0918]
[1732726438264,2.48,238.92,238.78,2.5285]
[1732726438265,2.0915,238.85,238.78,2.5285]
[1732726438466,2.0915,238.85,238.78,2.0921]
[1732726438661,9.13774491,238.84,238.78,2.0921]
[1732726438865,9.13774491,238.83,238.78,2.0921]
[1732726439069,2.48,238.84,238.56,10.09416402]
[1732726439268,20.431952,238.83,238.69,10.09416402]
[1732726439466,16.634752,238.82,238.69,10.09416402]
[1732726439668,16.634752,238.81,238.69,10.09416402]
[1732726439966,18.726752,238.8,238.73,2.0925]
[1732726440171,9.13210464,238.79,238.69,10.09416402]
[1732726440368,3.7972,238.83,238.69,10.09416402]
[1732726440369,9.13210464,238.78,238.69,10.09416402]
[1732726440683,2.0919,238.81,238.69,10.09416402]
[1732726440973,9.11942661,238.8,238.69,10.09416402]
[1732726441170,9.11942661,238.79,238.69,10.09416402]
[1732726441373,2.48,238.82,238.62,1.3309]
[1732726441578,10.09416402,238.78,238.62,1.3309]
[1732726441783,16.60284609,238.77,238.63,10.09416402]
[1732726441974,19.08284609,238.76,238.63,10.09416402]
[1732726442174,16.60284609,238.75,238.63,10.09416402]
[1732726442377,9.11500609,238.75,238.66,10.09416402]
[1732726442976,9.11500609,238.75,238.68,2.093]
[1732726443176,2.48,238.76,238.68,2.093]
[1732726443471,2.0924,238.75,238.67,2.0931]
[1732726443866,2.48,238.76,238.44,9.98468423]
[1732726444182,2.0927,238.73,238.66,2.0932]
[1732726444377,2.48,238.76,238.64,10.09416402]
[1732726444773,2.0925,238.74,238.67,2.0931]
[1732726445380,2.0927,238.72,238.65,2.0933]
[1732726445573,2.48,238.76,238.59,2.48]
[1732726445775,2.48,238.76,238.61,10.09416402]
[1732726445776,9.07999996,238.75,238.61,10.09416402]
[1732726446072,2.0925,238.74,238.64,10.09416402]
[1732726446268,2.48,238.76,238.64,10.09416402]
[1732726446871,2.0925,238.75,238.68,2.093]
[1732726447068,2.48,238.76,238.64,10.09416402]
[1732726447269,9.07340331,238.75,238.64,10.09416402]
[1732726447474,2.48,238.76,238.64,10.09416402]
[1732726447875,2.0925,238.75,238.64,10.09416402]
[1732726448091,2.48,238.76,238.38,6.2868]
[1732726448282,9.06497699,238.75,238.65,10.09416402]
[1732726448475,2.48,238.76,238.65,10.09416402]
[1732726449279,2.0925,238.74,238.66,2.0931]
[1732726449476,2.48,238.76,238.66,2.0931]
[1732726449679,2.0926,238.73,238.66,2.0931]
[1732726450278,2.0926,238.73,238.67,2.0931]
[1732726451281,2.48,238.76,238.62,10.09416402]
[1732726451483,2.48,238.76,238.68,2.093]
[1732726451985,4.5724,238.76,238.68,2.093]
[1732726452382,2.48,238.77,238.72,2.0926]
[1732726452583,2.48,238.77,238.68,10.09416402]
[1732726452885,3.8493,238.8,238.68,10.09416402]
[1732726453081,2.48,238.8,238.68,10.09416402]
[1732726453286,29.01308922,238.84,238.71,10.09416402]
[1732726453587,2.48,238.88,238.77,10.09416402]
[1732726453787,2.48,238.88,238.74,10.09416402]
[1732726454492,2.0915,238.86,238.8,2.092]
[1732726454688,2.48,238.88,238.74,10.09416402]
[1732726454888,2.0914,238.87,238.81,2.0918]
[1732726455487,2.0915,238.86,238.81,2.0918]
[1732726456387,2.0915,238.86,238.75,2.48]
[1732726456587,2.0915,238.86,238.82,2.0918]
[1732726456990,4.5713,238.88,238.83,2.0917]
[1732726457391,12.72946402,238.93,238.77,10.09416402]
[1732726457590,2.091,238.91,238.87,2.0913]
[1732726457892,2.48,238.92,238.8,10.09416402]
[1732726458080,4.5709,238.92,238.83,2.0917]
[1732726458287,2.48,238.92,238.8,10.09416402]
[1732726458687,2.48,238.92,238.77,11.41986402]
[1732726459697,2.48,238.92,238.8,10.09416402]
[1732726460487,2.48,238.92,238.77,11.41986402]
[1732726460693,10.09416402,238.9,238.77,1.3257]
[1732726461090,2.0915,238.86,238.8,2.0919]
[1732726461389,10.09416402,238.9,238.8,2.0919]
[1732726461789,10.09416402,238.9,238.76,1.3019]
[1732726461996,2.0915,238.86,238.81,2.0918]
[1732726463295,10.09416402,238.9,238.76,1.3019]
[1732726463594,2.0916,238.85,238.76,1.3019]
[1732726463996,2.0916,238.85,238.78,2.0921]
[1732726464197,2.48,238.92,238.77,10.09416402]
[1732726464496,10.56225735,238.91,238.77,10.09416402]
[1732726464690,11.55861513,238.91,238.8,10.09416402]
[1732726464995,2.48,238.91,238.8,10.09416402]
[1732726465193,11.17457083,238.9,238.85,2.0915]
[1732726465395,2.0911,238.9,238.85,2.0915]
[1732726465595,2.48,238.91,238.8,10.09416402]
[1732726465796,9.0851194,238.9,238.84,2.0916]
[1732726465997,2.48,238.91,238.77,10.09416402]
[1732726466295,2.0914,238.87,238.81,2.0919]
[1732726466490,2.48,238.91,238.77,10.09416402]
[1732726466695,9.08594831,238.9,238.77,10.09416402]
[1732726466902,11.17714831,238.89,238.83,2.0917]
[1732726467098,2.48,238.91,238.83,2.0917]
[1732726467298,9.08707927,238.9,238.83,2.0917]
[1732726467494,9.08707927,238.89,238.83,2.0917]
[1732726467700,2.0913,238.88,238.83,2.0917]
[1732726468200,2.0913,238.88,238.84,2.0916]
[1732726468791,2.48,238.91,238.77,10.09416402]
[1732726468991,11.18013939,238.9,238.8,10.09416402]
[1732726469197,2.0912,238.9,238.8,10.09416402]
[1732726469490,2.0912,238.9,238.87,2.0914]
[1732726469689,2.48,238.91,238.87,2.0914]
[1732726469894,9.08975459,238.9,238.87,2.0914]
[1732726470091,2.48,238.91,238.87,2.0914]
[1732726470294,11.18145353,238.9,238.8,10.09416402]
[1732726470494,2.48,238.91,238.76,1.3019]
[1732726470704,2.48,238.91,238.77,10.09416402]
[1732726470906,2.48,238.91,238.78,1.3675]
[1732726471392,2.0912,238.89,238.81,2.0918]
[1732726471592,2.0912,238.89,238.78,1.3675]
[1732726472497,2.0911,238.9,238.84,2.0916]
[1732726472892,2.0911,238.9,238.78,1.3675]
[1732726473095,2.0911,238.9,238.85,2.0915]
[1732726473499,2.48,238.91,238.86,2.0914]
[1732726473900,2.48,238.91,238.8,10.09416402]
[1732726474100,4.571,238.91,238.83,2.0917]
[1732726474299,4.571,238.91,238.8,10.09416402]
[1732726474699,4.571,238.91,238.86,2.0914]
[1732726475496,2.48,238.91,238.87,2.0913]
[1732726475699,2.0911,238.9,238.87,2.0913]
[1732726477104,2.48,238.91,238.85,2.0915]
[1732726477295,9.10792715,238.9,238.85,2.0915]
[1732726477499,2.48,238.91,238.85,2.0915]
[1732726477700,10.09416402,238.86,238.56,9.98188928]
[1732726477902,10.09416402,238.83,238.69,1.2911]
[1732726478103,2.0919,238.81,238.76,2.0923]
[1732726478299,9.10736798,238.8,238.69,1.2911]
[1732726478503,9.10736798,238.79,238.69,1.2911]
[1732726478705,2.092,238.8,238.74,2.0925]
[1732726478899,9.10828662,238.79,238.74,2.0925]
[1732726479101,2.092,238.8,238.74,2.0925]
[1732726479302,9.10983736,238.79,238.74,2.0925]
[1732726479605,2.092,238.8,238.74,2.0925]
[1732726479805,11.20233774,238.79,238.72,2.0927]
[1732726480006,9.11023774,238.78,238.69,1.2911]
[1732726480201,2.0921,238.79,238.69,1.2911]
[1732726480402,9.11248883,238.78,238.69,1.2911]
[1732726480605,10.09416402,238.83,238.69,1.2911]
[1732726480810,16.5979598,238.82,238.69,1.2911]
[1732726481105,10.09416402,238.8,238.69,1.2911]
[1732726481299,19.0779598,238.79,238.69,1.2911]
[1732726481500,16.5979598,238.78,238.69,1.2911]
[1732726481696,16.5979598,238.77,238.69,1.2911]
[1732726481900,9.11227373,238.76,238.69,1.2911]
[1732726482100,9.11227373,238.75,238.69,1.2911]
[1732726482302,10.09416402,238.77,238.69,1.2911]
[1732726482501,2.0923,238.74,238.67,2.0928]
[1732726482811,10.09416402,238.77,238.67,2.0928]
[1732726483107,2.0922,238.75,238.63,15.08686402]
[1732726483312,9.11156856,238.74,238.66,10.09416402]
[1732726483501,2.48,238.8,238.69,10.09416402]
[1732726483703,16.59473475,238.79,238.72,10.09416402]
[1732726483906,2.48,238.82,238.73,1.2972]
[1732726484099,16.59734782,238.81,238.75,10.09416402]
[1732726484301,2.48,238.87,238.75,10.09416402]
[1732726484601,16.59909738,238.86,238.75,10.09416402]
[1732726484806,16.59909738,238.85,238.75,10.09416402]
[1732726485002,9.11315551,238.84,238.78,2.0919]
[1732726485201,2.48,238.87,238.75,10.09416402]
[1732726485399,18.69254509,238.86,238.75,10.09416402]
[1732726485708,9.11390708,238.85,238.77,2.0922]
[1732726485909,9.11390708,238.85,238.75,10.09416402]
[1732726486603,9.11390708,238.85,238.74,1.3262]
[1732726487212,11.20550708,238.85,238.78,2.0921]
[1732726487813,9.11390708,238.85,238.78,2.0921]
[1732726488110,9.11390708,238.85,238.76,2.0923]
[1732726488308,9.11390708,238.85,238.74,1.3262]
[1732726488810,11.20550708,238.85,238.74,1.3262]
[1732726489010,9.11390708,238.85,238.74,1.3262]
[1732726489309,2.0917,238.84,238.78,2.0921]
[1732726490505,2.092,238.81,238.75,2.0924]
[1732726490706,2.092,238.81,238.74,1.3262]
[1732726490907,2.48,238.87,238.74,1.3262]
[1732726491108,7.49508561,238.86,238.74,1.3262]
[1732726491310,2.0918,238.83,238.74,1.3262]
[1732726491511,2.48,238.87,238.74,1.3262]
[1732726491806,16.62411223,238.86,238.74,1.3262]
[1732726492012,9.12661893,238.85,238.79,2.092]
[1732726492212,2.0915,238.86,238.79,2.092]
[1732726492613,2.0915,238.85,238.79,2.092]
[1732726492810,2.0915,238.85,238.74,1.3262]
[1732726493011,2.48,238.87,238.75,10.09416402]
[1732726493211,9.13244128,238.86,238.82,2.0918]
[1732726493415,2.48,238.88,238.82,2.0918]
[1732726493616,16.64298681,238.87,238.75,10.09416402]
[1732726493810,16.6424889,238.86,238.75,10.09416402]
[1732726494115,10.09416402,238.9,238.75,10.09416402]
[1732726494316,2.0914,238.87,238.75,10.09416402]
[1732726494515,9.13711457,238.86,238.78,10.09416402]
[1732726495007,9.13711457,238.86,238.83,2.0917]
[1732726495314,4.5713,238.89,238.83,2.0917]
[1732726495513,16.66329257,238.88,238.78,10.09416402]
[1732726495812,4.5711,238.9,238.78,10.09416402]
[1732726496016,16.66399354,238.89,238.78,10.09416402]
[1732726496210,9.14843541,238.88,238.78,10.09416402]
[1732726496415,9.15321709,238.87,238.78,10.09416402]
[1732726496717,2.0912,238.89,238.78,10.09416402]
[1732726496915,16.6741987,238.88,238.83,2.0917]
[1732726497219,9.15410556,238.87,238.83,2.0917]
[1732726497517,9.15410556,238.86,238.83,2.0917]
[1732726497712,4.5711,238.9,238.83,2.0917]
[1732726497918,16.68389144,238.89,238.83,2.0917]
[1732726498118,16.68389144,238.88,238.84,2.0916]
[1732726498319,9.15936334,238.87,238.78,10.09416402]
[1732726498522,11.39726402,238.93,238.78,10.09416402]
[1732726498523,9.15936334,238.86,238.78,10.09416402]
[1732726498717,2.46,238.92,238.78,10.09416402]
[1732726498919,16.68771464,238.91,238.78,10.09416402]
[1732726499118,16.68771464,238.9,238.78,10.09416402]
[1732726499314,16.68771464,238.89,238.78,10.09416402]
[1732726499521,9.1614489,238.88,238.78,10.09416402]
[1732726499823,9.1614489,238.87,238.84,2.0916]
[1732726500024,2.091,238.91,238.78,10.09416402]
[1732726500226,16.67695549,238.9,238.78,10.09416402]
[1732726500521,16.67695549,238.89,238.78,10.09416402]
[1732726500720,16.67695549,238.88,238.84,2.0915]
[1732726501028,16.67695549,238.87,238.84,2.0915]
[1732726501219,9.15556212,238.86,238.84,2.0915]
[1732726501421,2.0911,238.9,238.84,2.0915]
[1732726501620,16.67516857,238.89,238.84,2.0915]
[1732726501821,7.52056607,238.88,238.78,10.09416402]
[1732726502021,7.52056607,238.87,238.78,10.09416402]
[1732726502221,9.1546025,238.86,238.78,10.09416402]
[1732726502420,9.15364411,238.85,238.78,10.09416402]
[1732726502618,9.15268673,238.84,238.78,10.09416402]
[1732726502827,2.0914,238.87,238.81,2.0918]
[1732726503023,16.66944274,238.86,238.78,10.09416402]
[1732726503327,9.15142876,238.85,238.81,10.09416402]
[1732726503526,2.46,238.92,238.81,10.09416402]
[1732726503826,16.67108192,238.91,238.81,10.09416402]
[1732726504023,16.67108192,238.9,238.84,2.0916]
[1732726504227,16.67108192,238.89,238.81,10.09416402]
[1732726504529,16.67108192,238.88,238.81,10.09416402]
[1732726504726,16.67108192,238.87,238.81,10.09416402]
[1732726505022,9.1523191,238.86,238.82,2.0917]
[1732726505222,9.1523191,238.86,238.75,10.09416402]
[1732726505527,16.67226976,238.85,238.75,10.09416402]
[1732726505733,2.0917,238.83,238.74,1.3262]
[1732726506024,10.09416402,238.87,238.74,1.3262]
[1732726506025,9.1523191,238.82,238.74,1.3262]
[1732726506225,2.46,238.86,238.74,1.3262]
[1732726506529,16.66433954,238.85,238.75,10.09416402]
[1732726506723,16.66433954,238.84,238.8,2.0919]
[1732726506929,9.14865643,238.83,238.75,10.09416402]
[1732726507127,2.46,238.86,238.75,10.09416402]
[1732726507330,16.66378262,238.85,238.75,10.09416402]
[1732726507531,16.66378262,238.84,238.75,10.09416402]
[1732726507731,7.51567725,238.83,238.75,10.09416402]
[1732726507926,4.5515,238.86,238.8,2.0919]
[1732726508126,9.14690325,238.85,238.8,2.0919]
[1732726508326,9.14690325,238.84,238.75,10.09416402]
[1732726508527,2.46,238.86,238.78,2.0921]
[1732726508733,9.14736071,238.85,238.75,10.09416402]
[1732726508927,2.46,238.86,238.75,10.09416402]
[1732726509127,18.75403025,238.85,238.78,2.0921]
[1732726509329,9.14790484,238.84,238.75,10.09416402]